fUSD/lending_fUSD_20240414
["ID","MTS","AMOUNT","RATE_DAILY","PERIOD"]
[322613812,1713119443975,-200.0,0.00028,2]
[322613813,1713119443984,-262.32738623,0.00028,2]
[322613814,1713119443994,-856268.04563586,0.00028208,2]
[322613815,1713119444002,-150.0,0.000285,2]
[322613816,1713119444012,-1000.0,0.000288,3]
[322613817,1713119444021,-338.2,0.000288,2]
[322613818,1713119444030,-6750.20773336,0.00029,2]
[322613819,1713119444039,-562.05444632,0.00029,2]
[322613820,1713119444049,-1400.0,0.00029,3]
[322613821,1713119444058,-150.0,0.00029,2]
[322613822,1713119444068,-151.57,0.00029,2]
[322613823,1713119444078,-151.57,0.00029,2]
[322613824,1713119444088,-151.57,0.00029,2]
[322613825,1713119444097,-151.57,0.00029,2]
[322613826,1713119444107,-151.57,0.00029,2]
[322613827,1713119444117,-151.57,0.00029,2]
[322613828,1713119444126,-151.57,0.00029,2]
[322613829,1713119444136,-151.57,0.00029,2]
[322613830,1713119444145,-151.57,0.00029,2]
[322613831,1713119444160,-151.57,0.00029,2]
[322613832,1713119444170,-151.57,0.00029,2]
[322613833,1713119444179,-151.57,0.00029,2]
[322613834,1713119444188,-151.57,0.00029,2]
[322613835,1713119444197,-151.57,0.00029,2]
[322613836,1713119444207,-151.57,0.00029,2]
[322613837,1713119444217,-151.57,0.00029,2]
[322613838,1713119444227,-151.57,0.00029,2]
[322613839,1713119444236,-151.57,0.00029,2]
[322613840,1713119444245,-151.57,0.00029,2]
[322613841,1713119444254,-151.57,0.00029,2]
[322613842,1713119444264,-151.57,0.00029,2]
[322613843,1713119444273,-151.57,0.00029,2]
[322613844,1713119444283,-151.57,0.00029,2]
[322613845,1713119444292,-151.57,0.00029,2]
[322613846,1713119444301,-151.57,0.00029,2]
[322613847,1713119444310,-151.57,0.00029,2]
[322613848,1713119444320,-151.57,0.00029,2]
[322613849,1713119444330,-151.57,0.00029,2]
[322613850,1713119444340,-779.87,0.00029004,2]
[322613851,1713119444349,-191.116,0.00029434,2]
[322613852,1713119444360,-442.25500705,0.000295,3]
[322613853,1713119444369,-150.0,0.000295,2]
[322613854,1713119444378,-160.0,0.00029511,2]
[322613855,1713119444388,-150.0,0.00029743,2]
[322613856,1713119444401,-200.0,0.00029759,2]
[322613857,1713119444411,-1000.0,0.00029759,10]
[322613858,1713119444421,-200.0,0.00029759,7]
[322613859,1713119444430,-11226.65239113,0.00029815,2]
[322613860,1713119444931,-525.26191143,0.00022,2]
[322613861,1713119444975,-205.16025448,0.00022,2]
[322613862,1713119444986,-730.42216591,0.00022,2]
[322613863,1713119444996,-730.42216591,0.00022,2]
[322613864,1713119445005,-730.42216591,0.00022,2]
[322613865,1713119445016,-8773.33760887,0.00029815,2]
[322613866,1713119445026,-195.39,0.00029815,2]
[322613867,1713119445036,-5800.0,0.00029875,2]
[322613868,1713119445045,-3285.84313757,0.0002988,2]
[322613869,1713119445057,-460.63094984,0.0002988,2]
[322613870,1713119445068,-666.14594998,0.0002988,2]
[322613871,1713119445084,-324112.6825321,0.0002988,2]
[322613872,1713119445096,-458.68758806,0.0002988,2]
[322613873,1713119445107,-10931.55257449,0.0002988,2]
[322613874,1713119445118,-1348.3637632,0.0002988,2]
[322613875,1713119445130,-310.94300334,0.0002988,2]
[322613876,1713119445201,-16768.98760738,0.0002988,2]
[322613877,1713119445235,-1147.94373023,0.0002988,2]
[322613908,1713119446829,-628.807108,0.00020856,2]
[322613910,1713119446839,-164.2576301,0.00020999,2]
[322613912,1713119446848,-730.42216591,0.00022,2]
[322613914,1713119446857,-197.51520922,0.00022,2]
[322613919,1713119446897,-532.90695669,0.00022,2]
[322613921,1713119446909,-730.42216591,0.00022,2]
[322613923,1713119446918,-355.17319245,0.00022,2]
[322613925,1713119446929,-375.24897346,0.00022,2]
[322613927,1713119446939,-730.42216591,0.00022,2]
[322613929,1713119446948,-730.42216591,0.00022,2]
[322613931,1713119446957,-98.12704208,0.00022,2]
[322613938,1713119447008,-632.29512383,0.00022,2]
[322613940,1713119447018,-156.286,0.00024279,2]
[322613942,1713119447028,-670.20194448,0.0002988,2]
[322613975,1713119447341,-1425.95166666,0.0002988,2]
[322613978,1713119447356,-773051.99999906,0.0002988,2]
[322613982,1713119447390,-4763.87797647,0.0002988,2]
[322613983,1713119447405,-3149.22220706,0.0002988,2]
[322614199,1713119449605,-481.50882804,0.000209,2]
[322614201,1713119449615,-213.83235657,0.00020998,2]
[322614203,1713119449624,-1370.72273539,0.00020999,2]
[322614206,1713119449635,-787.78277112,0.00020999,2]
[322614211,1713119449676,-212.93616801,0.00020999,2]
[322614213,1713119449685,-986.0,0.00021,2]
[322614215,1713119449695,-250.0,0.00022145,2]
[322614217,1713119449704,-1228.0,0.00024279,2]
[322614219,1713119449713,-61659.69304768,0.0002988,2]
[322614453,1713119476100,323.24218697,0.00018415,2]
[322614454,1713119479489,1037.01238265,0.00018415,2]
[322614455,1713119482096,1039.08603946,0.00018415,2]
[322614456,1713119482323,1372.10854233,0.00018415,2]
[322614457,1713119485337,2537.25772202,0.00013811,2]
[322614458,1713119490952,407.88899033,0.00018415,2]
[322614459,1713119491998,435.54346527,0.00018415,2]
[322614460,1713119496337,317.34356756,0.00018415,2]
[322614461,1713119497209,1469.44551337,0.00018415,2]
[322614462,1713119498316,20140.61106047,0.00018415,2]
[322614463,1713119500440,1081.83020586,0.00017494,2]
[322614464,1713119501667,305.803906,0.00018415,2]
[322614465,1713119507109,435.69470741,0.00018415,2]
[322614466,1713119508019,360.83177805,0.00018415,2]
[322614467,1713119509112,2537.25772202,0.00013811,2]
[322614468,1713119510304,323.24218697,0.00018415,2]
[322614469,1713119511650,1063.88176184,0.00018415,2]
[322614470,1713119512092,941.68303376,0.00018415,2]
[322614471,1713119513723,407.88899033,0.00018415,2]
[322614472,1713119514967,952.38443051,0.00017494,2]
[322614473,1713119520098,7811.13028118,0.00018415,2]
[322614474,1713119520954,365.3656884,0.00018415,2]
[322614475,1713119524018,435.39222313,0.00018415,2]
[322614476,1713119525080,2537.25772202,0.00013811,2]
[322614477,1713119528041,941.68303376,0.00018415,2]
[322614478,1713119528074,360.83177805,0.00018415,2]
[322614479,1713119531136,1469.44551337,0.00018415,2]
[322614480,1713119531444,218.52087617,0.00018415,2]
[322614481,1713119532082,323.24218697,0.00018415,2]
[322614482,1713119534982,365.3656884,0.00018415,2]
[322614483,1713119537522,952.38443051,0.00017494,2]
[322614484,1713119541117,435.54346527,0.00018415,2]
[322614485,1713119546407,2537.25772202,0.00013811,2]
[322614486,1713119547276,941.68303376,0.00018415,2]
[322614487,1713119548445,1001.63452703,0.00018415,2]
[322614488,1713119549104,360.83177805,0.00018415,2]
[322614489,1713119552300,323.24218697,0.00018415,2]
[322614490,1713119554234,192.81130506,0.00018415,2]
[322614491,1713119560358,493.38132848,0.00017494,2]
[322614492,1713119563107,2537.25772202,0.00013811,2]
[322614493,1713119563176,435.54346527,0.00018415,2]
[322614494,1713119564073,941.68303376,0.00018415,2]
[322614495,1713119568288,464.76009537,0.00018415,2]
[322614496,1713119576095,323.35440399,0.00018415,2]
[322614497,1713119581059,1486.16853332,0.00013811,2]
[322614498,1713119581123,435.54346527,0.00018415,2]
[322614499,1713119584102,171.99330935,0.00018415,2]
[322614500,1713119594908,323.12996995,0.00018415,2]
[322614501,1713119597124,435.54346527,0.00018415,2]
[322614502,1713119614091,323.24218697,0.00018415,2]
[322614503,1713119615724,863.11991372,0.00018415,2]
[322614504,1713119620598,435.54346527,0.00018415,2]
[322614505,1713119628548,3810.43341699,0.00018415,2]
[322614506,1713119632392,3634.0731,0.00018415,2]
[322614507,1713119632560,323.24218697,0.00018415,2]
[322614508,1713119637153,435.54346527,0.00018415,2]
[322614509,1713119648200,243.36946215,0.00018415,2]
[322614510,1713119657170,391.19477087,0.00018415,2]
[322614511,1713119703653,1044.90649376,0.00018415,2]
[322614512,1713119712125,225.48350571,0.00018415,2]
[322614513,1713119748332,323.32008066,0.00018415,2]
[322614514,1713119775950,311.05234818,0.00018415,2]
[322614515,1713119778543,319.09179837,0.00018415,2]
[322614516,1713119785918,864.81971647,0.00018415,2]
[322614517,1713119787172,1411.65956719,0.00018415,2]
[322614518,1713119787203,2690.89621758,0.00013811,2]
[322614519,1713119793723,3162.07838635,0.00018499,2]
[322614520,1713119797861,322.02239215,0.00018415,2]
[322614521,1713119802505,365.3656884,0.00018415,2]
[322614522,1713119808558,155.15897873,0.00018415,2]
[322614523,1713119813488,19646.07439867,0.00018415,2]
[322614524,1713119817073,786.17678241,0.00018499,2]
[322614525,1713119818440,3609.65704915,0.00018415,2]
[322614526,1713119820297,370.53408328,0.00018415,2]
[322614527,1713119831410,19646.07439867,0.00018415,2]
[322614528,1713119835684,8135.16149,0.00018408,2]
[322614529,1713119846869,4317.2879473,0.00018499,2]
[322614530,1713119849745,3435.82851971,0.00018415,2]
[322614531,1713119855138,160.61653946,0.00018401,2]
[322614532,1713119861778,14218.85453348,0.00018496,2]
[322614533,1713119886184,1222.72700384,0.00018499,2]
[322614534,1713119889909,749.05627992,0.00018499,2]
[322614535,1713119891662,419.22939929,0.00018499,2]
[322614536,1713119898624,1127.03271038,0.00018499,2]
[322614537,1713119901681,523.31351988,0.00018499,2]
[322614538,1713119915266,705.57830306,0.00018499,2]
[322614539,1713119965895,537.29485027,0.00018499,2]
[322614540,1713119986364,2234.0444681,0.00018499,2]
[322614541,1713120000225,3162.07838635,0.00018499,2]
[322614542,1713120011006,1000.0,0.00018499,2]
[322614543,1713120015382,155.0,0.00018499,2]
[322614544,1713120018451,786.17678241,0.00018499,2]
[322614545,1713120024269,5539.30222896,0.00018499,2]
[322614546,1713120025415,526.09688753,0.00018499,2]
[322614547,1713120040512,363.29786344,0.00018499,2]
[322614548,1713120057557,155.0,0.00018499,2]
[322614549,1713120060718,780.34286168,0.00018499,2]
[322614550,1713120066228,708.94208122,0.00018499,2]
[322614551,1713120086600,2352.46926629,0.00018499,2]
[322614552,1713120090737,544.7207122,0.00014799,2]
[322614553,1713120092006,523.31351988,0.00018499,2]
[322614554,1713120093441,155.0,0.00018499,2]
[322614555,1713120093996,155.0,0.00018499,2]
[322614556,1713120098385,4402.81512866,0.00018499,2]
[322614557,1713120101716,1222.72700384,0.00018499,2]
[322614558,1713120103539,1127.03271038,0.00018498,2]
[322614559,1713120104467,4326.39237795,0.00018498,2]
[322614560,1713120104700,4317.2879473,0.00018498,2]
[322614561,1713120108615,184.15791957,0.00014799,2]
[322614562,1713120111389,683.27995213,0.00018499,2]
[322614563,1713120115109,8894.06070233,0.00018499,2]
[322614564,1713120116908,16734.8283885,0.00018499,2]
[322614565,1713120118684,376.34801074,0.00018499,2]
[322614566,1713120125141,155.0,0.00018499,2]
[322614567,1713120126359,621.12248273,0.00018499,2]
[322614568,1713120130959,1992.21788626,0.00018499,2]
[322614569,1713120135742,307.17927733,0.00018499,2]
[322614570,1713120137252,3162.07838635,0.00018499,2]
[322614571,1713120141800,1101.71094274,0.00018499,2]
[322614572,1713120146761,7485.32692737,0.00018499,2]
[322614573,1713120148435,155.90112347,0.00018499,2]
[322614574,1713120154673,157.04510012,0.00018498,2]
[322614575,1713120160153,1242.81455954,0.00018499,2]
[322614576,1713120167572,155.0,0.00018499,2]
[322614577,1713120168211,419.22939929,0.00018499,2]
[322614578,1713120171029,155.0,0.00018499,2]
[322614579,1713120179547,1059.36088493,0.00018499,2]
[322614580,1713120182219,155.0,0.00018499,2]
[322614581,1713120186707,207.5347557,0.00018499,2]
[322614582,1713120188328,155.0,0.00018499,2]
[322614583,1713120193194,2234.0444681,0.00018499,2]
[322614584,1713120201930,786.17678241,0.00018499,2]
[322614585,1713120202827,1000.0,0.00018499,2]
[322614586,1713120203693,607.65156382,0.00018499,2]
[322614587,1713120213690,219.89009366,0.00018495,2]
[322614588,1713120217671,2301.47692465,0.00018499,2]
[322614589,1713120217885,261.94705182,0.00018499,2]
[322614590,1713120222441,155.0,0.00018499,2]
[322614591,1713120230206,155.0,0.00018499,2]
[322614592,1713120233153,1781.91306782,0.00018499,2]
[322614593,1713120233345,651.34,0.00017228,2]
[322614594,1713120235100,1387.46461063,0.00018498,2]
[322614595,1713120235204,407.90695941,0.00018498,2]
[322614596,1713120239122,694.0,0.00018487,2]
[322614597,1713120239477,155.0,0.00018499,2]
[322614598,1713120247286,1242.81455954,0.00018499,2]
[322614599,1713120247704,4317.2879473,0.00018499,2]
[322614600,1713120247766,780.34286168,0.00018499,2]
[322614601,1713120247919,155.0,0.00018499,2]
[322614602,1713120249747,708.94208122,0.00018499,2]
[322614603,1713120250015,500.0,0.0001843,2]
[322614604,1713120250141,8894.06070233,0.00018499,2]
[322614605,1713120251745,1297.79891384,0.00018499,2]
[322614606,1713120252120,1222.72700384,0.00018499,2]
[322614607,1713120253382,376.34801074,0.00018499,2]
[322614608,1713120260326,904.04274901,0.00018499,2]
[322614609,1713120261101,155.0,0.00018499,2]
[322614610,1713120263979,538.59178431,0.00018499,2]
[322614611,1713120264218,194.14929762,0.00018499,2]
[322614612,1713120265639,2234.0444681,0.00018499,2]
[322614613,1713120266311,180.58,0.00014789,2]
[322614614,1713120267090,1097.07,0.00018486,2]
[322614615,1713120267311,621.12248273,0.00018499,2]
[322614616,1713120269272,155.0,0.00018499,2]
[322614617,1713120274820,3162.07838635,0.00018499,2]
[322614618,1713120274935,164.29423485,0.00018499,2]
[322614619,1713120278123,3378.54108249,0.00018499,2]
[322614620,1713120284897,786.17678241,0.00018499,2]
[322614621,1713120285201,1000.0,0.00018499,2]
[322614622,1713120292246,261.94705182,0.00018499,2]
[322614623,1713120302276,2352.46926629,0.00018499,2]
[322614624,1713120302896,683.27995213,0.00018499,2]
[322614625,1713120306049,407.90695941,0.00018499,2]
[322614626,1713120308860,1127.03271038,0.00018499,2]
[322614627,1713120308938,200.0,0.00018499,2]
[322614628,1713120309000,419.22939929,0.00018499,2]
[322614629,1713120314184,2402.7,0.0001845,2]
[322614630,1713120318280,708.94208122,0.00018499,2]
[322614631,1713120326756,465.95711145,0.00018499,2]
[322614632,1713120330316,4317.2879473,0.00018499,2]
[322614633,1713120333258,1222.72700384,0.00018499,2]
[322614634,1713120337859,1297.79891384,0.00018499,2]
[322614635,1713120341009,183.99,0.0001471,2]
[322614636,1713120344651,3378.54108249,0.00018499,2]
[322614637,1713120346003,2234.0444681,0.00018499,2]
[322614638,1713120349770,164.29423485,0.00018499,2]
[322614639,1713120356345,1234.79,0.00018317,2]
[322614640,1713120361161,786.17678241,0.00018499,2]
[322614641,1713120371062,259.63,0.00018292,2]
[322614642,1713120371784,1000.0,0.00018499,2]
[322614643,1713120372691,261.94705182,0.00018499,2]
[322614644,1713120381072,200.0,0.00018298,2]
[322614645,1713120388857,1852.42,0.00018298,2]
[322614646,1713120389705,1127.03271038,0.00018499,2]
[322614647,1713120392220,419.22939929,0.00018499,2]
[322614648,1713120396137,1686.28,0.00018298,2]
[322614649,1713120406004,1059.36088493,0.00018499,2]
[322614650,1713120406259,1222.72700384,0.00018499,2]
[322614651,1713120410036,1297.79891384,0.00018499,2]
[322614652,1713120419646,150.47552783,0.00016566,2]
[322614653,1713120427327,170.53,0.00018256,2]
[322614661,1713120438777,2486.27,0.00018218,2]
[322614662,1713120439458,786.17678241,0.00018499,2]
[322614666,1713120454711,1000.0,0.00018499,2]
[322614667,1713120466373,419.22939929,0.00018499,2]
[322614668,1713120477543,1222.72700384,0.00018499,2]
[322614669,1713120509955,786.17678241,0.00018499,2]
[322614670,1713120516765,177.45,0.0001824,2]
[322614671,1713120522755,1000.0,0.00018499,2]
[322614672,1713120562088,200.0,0.00018407,2]
[322614673,1713120580258,500.0,0.0001804,2]
[322614674,1713120581213,200.0,0.00017918,2]
[322614676,1713120594299,200.0,0.000179,2]
[322614677,1713120594947,200.0,0.0002685,120]
[322614678,1713120598998,1000.0,0.00018499,2]
[322614679,1713120603358,150.0,0.00018407,2]
[322614680,1713120603907,150.0,0.00018407,2]
[322614681,1713120604076,150.0,0.00018407,2]
[322614682,1713120604212,150.0,0.00018407,2]
[322614683,1713120604394,241.41790534,0.00018407,2]
[322614684,1713120621151,250.0,0.00017661,2]
[322614685,1713120622446,333.13,0.00017792,2]
[322614686,1713120622888,333.13,0.00017841,2]
[322614687,1713120623105,333.13,0.0001789,2]
[322614688,1713120623515,333.13,0.00017938,2]
[322614689,1713120623752,333.13,0.00017987,2]
[322614690,1713120623971,333.13,0.00018036,2]
[322614691,1713120624122,176.39,0.00018207,2]
[322614692,1713120624578,333.13,0.00018085,2]
[322614693,1713120624808,333.13,0.00018134,2]
[322614694,1713120625138,333.13,0.00018182,2]
[322614695,1713120625261,333.13,0.00018231,2]
[322614696,1713120625535,333.13,0.0001828,2]
[322614697,1713120625695,333.13,0.00018329,2]
[322614698,1713120626768,333.13,0.00018378,2]
[322614699,1713120627399,333.13,0.00018426,2]
[322614700,1713120627579,333.13,0.00018475,2]
[322614723,1713120631676,-1745.83354019,0.000185,2]
[322614724,1713120631685,-2254.16645981,0.00018513,2]
[322614725,1713120631755,-638.49582452,0.00018513,2]
[322614726,1713120631789,-402.0,0.00018513,2]
[322614727,1713120631803,-2332.32978955,0.00018513,2]
[322614728,1713120631815,-713.07366266,0.00018513,2]
[322614729,1713120631828,-893.59727248,0.00018513,2]
[322614730,1713120631865,-16088.5992528,0.00018513,2]
[322614731,1713120631874,-35210.93038898,0.00018514,2]
[322614732,1713120631883,-3406.17756238,0.00018518,2]
[322614733,1713120631892,-333.13,0.00018524,2]
[322614734,1713120631902,-150.0,0.00018525,2]
[322614735,1713120631911,-23900.0,0.00018532,2]
[322614736,1713120631920,-333.13,0.00018573,2]
[322614737,1713120631930,-728.44,0.00018577,2]
[322614738,1713120631939,-868.77,0.00018578,2]
[322614739,1713120631948,-868.77,0.00018583,2]
[322614740,1713120631957,-868.77,0.00018588,2]
[322614741,1713120631966,-868.77,0.00018593,2]
[322614742,1713120631975,-868.77,0.00018598,2]
[322614743,1713120631985,-868.77,0.00018603,2]
[322614744,1713120631994,-868.77,0.00018607,2]
[322614745,1713120632004,-868.77,0.00018612,2]
[322614746,1713120632014,-868.77,0.00018617,2]
[322614747,1713120632024,-333.13,0.00018621,2]
[322614748,1713120632034,-868.77,0.00018622,2]
[322614749,1713120632043,-868.77,0.00018627,2]
[322614750,1713120632055,-314.548531,0.0001863,2]
[322614751,1713120632064,-868.77,0.00018632,2]
[322614752,1713120632072,-868.77,0.00018637,2]
[322614753,1713120632081,-868.77,0.00018642,2]
[322614754,1713120632091,-868.77,0.00018646,2]
[322614755,1713120632101,-868.77,0.00018651,2]
[322614756,1713120632110,-868.77,0.00018656,2]
[322614757,1713120632120,-150.0,0.00018658,2]
[322614758,1713120632129,-868.77,0.00018661,2]
[322614759,1713120632139,-868.77,0.00018666,2]
[322614760,1713120632148,-333.13,0.0001867,2]
[322614761,1713120632158,-868.77,0.00018671,2]
[322614763,1713120632167,-155.55605708,0.00018695,2]
[322614765,1713120632176,-499.99,0.00018695,2]
[322614767,1713120632185,-300.0,0.00018697,2]
[322614769,1713120632194,-333.13,0.00018719,2]
[322614771,1713120632203,-1261.54841761,0.00018732,2]
[322614772,1713120632213,-293.6462943,0.00018786,2]
[322614773,1713120632222,-1000.0,0.00018795,2]
[322614774,1713120632231,-102738.169359,0.00018796,2]
[322614775,1713120632244,-15799.99996,0.00018796,2]
[322614776,1713120632255,-809.73333754,0.00018796,2]
[322614777,1713120632370,-3308.305,0.00018796,2]
[322614778,1713120632381,-282.835599,0.00018796,2]
[322614779,1713120632393,-580.86539022,0.00018796,2]
[322614780,1713120632570,-4160.23152884,0.00018796,2]
[322614781,1713120632581,-593.41505923,0.00018796,2]
[322614782,1713120632610,-527.18712473,0.00018796,2]
[322614783,1713120632683,-2444.26708576,0.00018796,2]
[322614784,1713120632694,-4909.8383545,0.00018796,2]
[322614850,1713120638064,-1146.01543609,0.00018796,2]
[322614852,1713120638076,-16191.4999979,0.00018796,2]
[322614854,1713120638088,-392036.67765692,0.00018796,2]
[322614856,1713120638098,-298.92910282,0.00019,2]
[322614858,1713120638107,-233.59988825,0.00019,2]
[322614859,1713120638116,-2171.38984214,0.00019078,2]
[322614861,1713120638125,-734.54,0.0001914,2]
[322614863,1713120638135,-288.91216319,0.00019172,2]
[322614865,1713120638144,-522.68506716,0.00019172,2]
[322614867,1713120638154,-631.31202309,0.00019173,2]
[322614869,1713120638163,-158.17039158,0.00019175,2]
[322614871,1713120638172,-532.27676482,0.00019175,2]
[322614873,1713120638181,-159.30882055,0.00019175,2]
[322614874,1713120638191,-194.98908909,0.00019176,2]
[322614876,1713120638200,-11346.37,0.00019178,2]
[322614878,1713120638208,-1500.0,0.00019178,2]
[322614880,1713120638218,-156.47,0.0001918,2]
[322614882,1713120638227,-6658.55,0.00019215,2]
[322614884,1713120638236,-614.03,0.00019215,2]
[322614885,1713120638245,-314.548531,0.00019452,2]
[322614887,1713120638254,-150.0,0.00019461,2]
[322614889,1713120638263,-175.15653764,0.00019489,2]
[322614891,1713120638272,-1469.76607267,0.00019489,2]
[322614893,1713120638281,-651.34,0.00019492,2]
[322614894,1713120638291,-864.71000666,0.000195,2]
[322614896,1713120638300,-291.76684153,0.00019519,2]
[322614898,1713120638310,-51954.0106,0.00019617,2]
[322614900,1713120638318,-83387.2724,0.00019617,2]
[322614902,1713120638328,-2500.0,0.00019617,2]
[322614904,1713120638337,-341.08206828,0.00019715,2]
[322614905,1713120638347,-1821.84183996,0.00019715,2]
[322614906,1713120638356,-356.69411535,0.00019715,2]
[322614907,1713120638365,-735.65993058,0.00019715,2]
[322614908,1713120638375,-3262.74997031,0.00019715,2]
[322614909,1713120638385,-2418.60726859,0.00019715,2]
[322614910,1713120638395,-752.18991283,0.00019718,2]
[322614911,1713120638406,-183.56559015,0.00019718,2]
[322614912,1713120638415,-413.15560905,0.00019718,2]
[322614913,1713120638425,-273.43010778,0.00019718,2]
[322614914,1713120638435,-436.62519997,0.00019718,2]
[322614915,1713120638444,-320.04585537,0.00019718,2]
[322614916,1713120638454,-301.81309237,0.00019718,2]
[322614917,1713120638463,-350.24231601,0.00019718,2]
[322614918,1713120638472,-653.14477957,0.00019718,2]
[322614919,1713120638481,-240.71709655,0.00019718,2]
[322614920,1713120638492,-725.67680864,0.00019719,2]
[322614921,1713120638501,-166.99,0.00019955,2]
[322614922,1713120638510,-155.0,0.0002,2]
[322614923,1713120638519,-326.91390838,0.0002,2]
[322614924,1713120638529,-155.0,0.0002,2]
[322614925,1713120638540,-6215.68294364,0.0002,2]
[322614926,1713120638550,-1764.61264408,0.0002,2]
[322614927,1713120638563,-1255.73249676,0.0002,2]
[322614928,1713120638573,-155.0,0.0002,2]
[322614929,1713120638582,-3063.30522922,0.0002,2]
[322614930,1713120638591,-158.64,0.00020171,2]
[322614931,1713120638601,-158.64,0.00020182,2]
[322614932,1713120638610,-158.64,0.00020193,2]
[322614933,1713120638620,-158.64,0.00020204,2]
[322614934,1713120638629,-158.64,0.00020216,2]
[322614935,1713120638638,-158.64,0.00020227,2]
[322614936,1713120638647,-158.64,0.00020238,2]
[322614937,1713120638656,-158.64,0.00020249,2]
[322614938,1713120638665,-158.64,0.0002026,2]
[322614939,1713120638674,-158.64,0.00020272,2]
[322614940,1713120638683,-314.548531,0.00020274,2]
[322614941,1713120638692,-599.03500121,0.00020369,2]
[322614942,1713120638701,-599.03500122,0.00020369,2]
[322614943,1713120638710,-200.0,0.00020372,2]
[322614944,1713120638719,-210.0,0.00020378,2]
[322614945,1713120638728,-174.44,0.00020449,2]
[322614946,1713120638737,-999.99,0.00020455,2]
[322614947,1713120638746,-2171.38984213,0.00020503,2]
[322614948,1713120638755,-493.89,0.00020548,2]
[322614949,1713120638765,-441.05698349,0.000206,2]
[322614950,1713120638774,-159.263,0.00020726,2]
[322614951,1713120638783,-545.5748,0.00020794,2]
[322614952,1713120638793,-1472.4402,0.00020795,2]
[322614953,1713120638804,-887.1935,0.00020796,2]
[322614954,1713120638817,-1121.7254,0.00020797,2]
[322614955,1713120638827,-268.0535,0.00020797,2]
[322614956,1713120638836,-4936.3024,0.00020797,2]
[322614957,1713120638845,-2476.3791,0.00020797,2]
[322614958,1713120638855,-232.0223,0.00020797,2]
[322614959,1713120638863,-159.263,0.0002082,2]
[322614960,1713120638873,-200.0,0.00020832,2]
[322614961,1713120638882,-4624.74554964,0.00020876,2]
[322614962,1713120638891,-480.28,0.00020883,3]
[322614963,1713120638903,-155.0,0.00020891,2]
[322614964,1713120638912,-155.0,0.00020891,2]
[322614965,1713120638922,-261.31249804,0.00020891,2]
[322614966,1713120638932,-309.98182803,0.00020891,2]
[322614967,1713120638941,-264.23455154,0.00020891,2]
[322614968,1713120638951,-155.0,0.00020891,2]
[322614969,1713120638960,-185.48997555,0.00020891,2]
[322614970,1713120638969,-188.00024433,0.00020891,2]
[322614971,1713120638979,-192.10096096,0.00020891,2]
[322614972,1713120638990,-268.14558605,0.00020891,2]
[322614973,1713120639000,-916.43968644,0.00020891,2]
[322614974,1713120639009,-155.0,0.00020891,2]
[322614975,1713120639019,-285.4157819,0.00020891,2]
[322614976,1713120639029,-206.85900622,0.00020891,2]
[322614977,1713120639038,-654.07507989,0.00020891,2]
[322614978,1713120639049,-155.0,0.00020892,2]
[322614979,1713120639064,-226.51443299,0.00020894,2]
[322614980,1713120639073,-266.90306325,0.00020894,2]
[322614981,1713120639082,-2085.07783741,0.00020894,2]
[322614982,1713120639091,-200.84669787,0.00020894,2]
[322614983,1713120639100,-295.8857038,0.00020894,2]
[322614984,1713120639109,-205.36093141,0.00020894,2]
[322614985,1713120639118,-172.10564736,0.00020894,2]
[322614986,1713120639127,-274.08041687,0.00020894,2]
[322614992,1713120639469,-206.23207189,0.00020894,2]